Workbook

Sheet 附表
A1: 医学部一站式学生社区服务中心项目-采购部分价格审定表
A2: 序号 | B2: 名称 | C2: 参数信息 | D2: 单位 | E2: 数量 | F2: 单价（元） | G2: 金额 (元) | H2: 备注
A3: 3、4栋服务大厅 | G3: =SUM(G4:G15) -> 31886.00
A4: 1 | B4: 办公椅 | C4: 不锈钢脚，皮质靠垫 | D4: 张 | E4: 5.00 | F4: 360.00 | G4: =E4*F4 -> 1800.00
A5: 2 | B5: 等候椅 | C5: 加厚加固三人位等候椅，钢制结构+高弹海绵皮垫，长2.9m*宽0.65m*高0.78m，尺寸误差不超过±10mm。 | D5: 套 | E5: 2.00 | F5: 1350.00 | G5: =E5*F5 -> 2700.00
A6: 3 | B6: 背景墙水晶字 | C6: 中文侧厚1.5cm水晶焗漆字，高39cm*长39cm； | D6: 个 | E6: 11.00 | F6: 200.00 | G6: 2200.00
A7: 4 | C7: 英文侧厚1.5cm水晶焗漆字，高8.2cm*长8.2cm； | D7: 个 | E7: 36.00 | F7: 50.00 | G7: 1800.00
A8: 5 | C8: LOGO8+3水晶字 | D8: 套 | E8: 1.00 | F8: 490.00 | G8: 490.00
A9: 6 | B9: 墙面灯箱 | C9: LED软膜灯箱1m*1.8m，铝型材边框，LED灯珠，铝箔反光底板，高清软膜UV，尺寸误差不超过±10mm。 | D9: m2 | E9: 5.40 | F9: 220.00 | G9: 1188.00
A10: 7 | B10: 制度牌 | C10: 5mm亚克力倒角，画面高清uv,长0.9m*高0.6m，尺寸误差不超过±10mm。 | D10: 块 | E10: 3.00 | F10: 220.00 | G10: 660.00
A11: 8 | B11: 书报架 | C11: 银灰色网篮款。规格：宽635mm*侧厚365mm*高1275mm，重量：5.5kg/个 | D11: 个 | E11: 1.00 | F11: 246.00 | G11: 246.00
A12: 9 | B12: 服务台吊牌 | C12: 2cmPVC+5mm亚克力造型，画面高清UV，长100cm*高35cm，尺寸误差不超过±10mm。 | D12: 套 | E12: 4.00 | F12: 288.00 | G12: 1152.00
A13: 10 | B13: 电脑 | C13: 型号:麒麟9000C，核心/线程：8C/12T，主频2.35Ghz，最高内存支持16GB LPDDR5，最高存储支持1T SSD+2TB HDD，显卡：集卡，机箱尺寸93*315.5*293mm，支持系统：麒麟/统信，显示接口VGA+HDMI | D13: 套 | E13: 3.00 | F13: 5400.00 | G13: 16200.00
A14: 11 | B14: 台式打印机 | C14: 得力DM28ADN 黑白激光打印、复印、彩色扫描，28ppm，自动双面打印16ppm，1200x1200dpi打印分辨率，35页自动进稿器，3700页大容量硒鼓。 | D14: 台 | E14: 1.00 | F14: 2650.00 | G14: 2650.00
A15: 12 | B15: 窗帘 | C15: 天鹅绒麻米白色布艺窗帘克重：1200g/m+罗马杆，宽2m*高2.2m*2套 | D15: 套 | E15: 2.00 | F15: 400.00 | G15: 800.00
A16: 3、4栋辅导员工作室 | G16: =SUM(G17:G26) -> 35540.00
A17: 1 | B17: 办公桌 | C17: 木质结构，长140cm*宽70cm*高75cm，尺寸误差不超过±10mm | D17: 张 | E17: 4.00 | F17: 720.00 | G17: =E17*F17 -> 2880.00
A18: 2 | B18: 办公椅 | C18: 不锈钢脚，皮质靠垫。宽500mm*侧厚500mm*高950mm； | D18: 张 | E18: 4.00 | F18: 360.00 | G18: =E18*F18 -> 1440.00
A19: 3 | B19: 文件柜 | C19: 铁皮文件柜，长85cm*宽39cm*高180cm，尺寸误差不超过±10mm。 | D19: 个 | E19: 5.00 | F19: 700.00 | G19: 3500.00
A20: 4 | B20: 背景墙水晶字 | C20: 8+3水晶字，25.5cm*25.5cm*8 | D20: 组 | E20: 2.00 | F20: 450.00 | G20: 900.00
A21: 5 | B21: 电脑 | C21: 型号:麒麟9000C，核心/线程：8C/12T，主频2.35Ghz，最高内存支持16GB LPDDR5，最高存储支持1T SSD+2TB HDD，显卡：集卡，机箱尺寸93*315.5*293mm，支持系统：麒麟/统信，显示接口VGA+HDMI | D21: 套 | E21: 2.00 | F21: 5400.00 | G21: 10800.00
A22: 6 | B22: 1.5P空调 | C22: 1.5P一级能效，皓雪白；制冷量≥3510W；制热量≥5010W；制冷功率≥810W；制热功率≥1250W;外机尺寸802x350x555mm,内机尺寸825x196x293mm;空调功率1.5匹,空调类型:壁挂式,内机循环风量≥640立方米/小时,变频一级能效，室内机噪音≤41dB。 | D22: 台 | E22: 2.00 | F22: 2900.00 | G22: 5800.00
A23: 7 | B23: 制度牌 | C23: 5mm亚克力倒角，画面高清uv,长0.9m*高0.6m，尺寸误差不超过±10mm。 | D23: 块 | E23: 6.00 | F23: 220.00 | G23: 1320.00
A24: 8 | B24: 接待桌椅组合 | C24: 80*80cm仿白石圆桌，75cmPU皮角椅，实木脚，尺寸误差不超过±10mm。 | D24: 套 | E24: 2.00 | F24: 1000.00 | G24: 2000.00
A25: 9 | B25: 台式打印机 | C25: 得力DM28ADN 黑白激光打印、复印、彩色扫描，28ppm，自动双面打印16ppm，1200x1200dpi打印分辨率，35页自动进稿器，3700页大容量硒鼓。 | D25: 台 | E25: 2.00 | F25: 2650.00 | G25: 5300.00
A26: 10 | B26: 窗帘 | C26: 天鹅绒麻米白色布艺窗帘克重：1200g/m+罗马杆，宽2m*高2.2m*2套 | D26: 套 | E26: 4.00 | F26: 400.00 | G26: 1600.00
A27: 3、4栋青年成长中心 | G27: =SUM(G28:G39) -> 29353.88
A28: 1 | B28: 会议条桌 | C28: 木质结构，长120cm*宽40cm*高75cm，尺寸误差不超过±10mm | D28: 张 | E28: 8.00 | F28: 750.00 | G28: =E28*F28 -> 6000.00
A29: 2 | B29: 办公椅 | C29: 钢制脚，网布靠垫，宽460mm*侧厚460mm*高950mm; | D29: 张 | E29: 20.00 | F29: 280.00 | G29: =E29*F29 -> 5600.00
A30: 3 | B30: 文件柜 | C30: 铁皮文件柜，长85cm*宽39cm*高180cm，尺寸误差不超过±10mm。 | D30: 个 | E30: 1.00 | F30: 700.00 | G30: 700.00
A31: 4 | B31: 背景墙 | C31: 中文侧厚1.5cm水晶焗漆字，高39cm*长39cm，尺寸误差不超过±10mm。 | D31: ㎡ | E31: 6.00 | F31: 220.00 | G31: 1320.00
A32: 5 | B32: 背景墙 | C32: 英文侧厚1.5cm水晶焗漆字，高12cm*长12cm，尺寸误差不超过±10mm。 | D32: ㎡ | E32: 17.00 | F32: 65.00 | G32: 1105.00
A33: 6 | B33: 背景墙 | C33: 实木免漆板+同色封边底板：3.7m*0.8m，尺寸误差不超过±10mm。 | D33: ㎡ | E33: 2.96 | F33: 268.00 | G33: 793.28
A34: 7 | B34: 投影仪 | C34: ≥3800流明 分辨率≥1024x768 | D34: 套 | E34: 1.00 | F34: 3580.00 | G34: 3580.00
A35: 8 | B35: 投影仪幕布 | C35: 100寸电动幕布 | D35: 套 | E35: 1.00 | F35: 1200.00 | G35: 1200.00
A36: 9 | B36: 制度牌 | C36: 5mm亚克力倒角，画面高清uv,长0.9m*高0.6m，尺寸误差不超过±10mm。 | D36: 块 | E36: 4.00 | F36: 220.00 | G36: 880.00
A37: 10 | B37: 文化墙 | C37: 长3.3m*高1.2m,2cmPVC+晶片高清UV，异形雕刻 | D37: ㎡ | E37: 3.96 | F37: 360.00 | G37: 1425.60
A38: 11 | B38: 3P柜式空调 | C38: 型号:3P，能耗一级节能;安装形式:落地;制冷量≥7290W，制热量≥9710W，制冷功率≥2080W，制热功率≥3100W，能效等级一级变频，内机尺寸372x1810x403mm，外机尺寸965x700x396mm。 | D38: 台 | E38: 1.00 | F38: 6350.00 | G38: 6350.00
A39: 12 | B39: 窗帘 | C39: 天鹅绒麻米白色布艺窗帘克重：1200g/m+罗马杆，宽2m*高2.2m*2套 | D39: 套 | E39: 1.00 | F39: 400.00 | G39: 400.00
A40: 1、2栋健康驿站 | G40: =SUM(G41:G53) -> 61070.36
A41: 1 | B41: 多功能一体机 | C41: 综合力量训练器械，多功能一体机三人站； 产品规格: 205*240*218cm，每项误差不超过±10mm 毛重/净重: 192kg/176kg，重量误差不超过0.5KG 产品特征：主架管，靠背管座位管等关键部位都是50*70的优质钢管，4根钢丝绳，带颈部训练绳功能，可以高拉（前）、高拉（后）、低拉、蝴蝶夹胸、踢腿、立式后踢、立式提拉、曲臂上拉、曲臂、坐式划船，腿部侧向伸展等；可综合训练腹、臂、背、胸、腿、臀部等肌肉，塑造形体，增强人体协调性。可以同时三人一起使用， 配重≥72KG. | D41: 台 | E41: 1.00 | F41: 6998.00 | G41: =E41*F41 -> 6998.00
A42: 2 | B42: 跑步机 | C42: 跑步机； 产品规格:1955*865*1437mm，每项误差不超过±10mm 包装尺寸：2030*900*345mm，每项误差不超过±10mm 毛重/净重：91/81KG ，重量误差不超过0.5KG 产品特征：马达功率：2HP，手机可以连接运动APP，跑带尺寸：520*1500mm,速度范围：1-20KM/H坡度：0%-20% 24组预设运动程序，LED显示屏，显示程序，时间，距离，卡路里，心率，速度等，高保真MP3音响，可连接蓝牙，可进入体脂测试，自行设定性别、年龄、身高、体重最大承重：140KG | D42: 台 | E42: 2.00 | F42: 7360.00 | G42: =E42*F42 -> 14720.00
A43: 3 | B43: 动感单车 | C43: 骑行健身动感单车，室内自行车骑行台健身器； 产品规格：1119*530*1132mm，每项误差不超过±10mm 外箱尺寸:990*220*765mm，每项误差不超过±10mm 毛重/净重：34KG/30KG，重量误差不超过0.5KG 产品特征：6KG飞轮阻力，双向皮带传动，传动比:5.5:1(4PK52英寸)，曲柄半径:(3PCS 曲柄)170mm，承重量为:120KG,前脚管:80*40*1.5 黑腰圆管后脚管:100*40*1.5,黑腰圆管前脚管带滚轮，移动方便 刹车结构为羊毛毡，座垫:可上下前后调整，电子表可以显示时间，速度，距离，卡路里等 | D43: 台 | E43: 6.00 | F43: 2530.00 | G43: 15180.00
A44: 4 | B44: 划船器 | C44: 划船器; 产品规格：2440*500*1240mm，每项误差不超过±10mm 折叠尺寸:1350*500*1670mm，每项误差不超过±10mm 毛重/净重：59KG/49KG，重量误差不超过0.5KG 产品特征：12套预设程序，电子表显示距离、时间、心跳、可根据心率值设置程序锻炼，有赛车运动模式，在这种模式下，用户可以在与电子表的比赛中享受划船的乐趣。 | D44: 台 | E44: 1.00 | F44: 7980.00 | G44: 7980.00
A45: 5 | B45: 腹肌板 | C45: 健腹板 产品规格：175*60*78cm，每项误差不超过±10mm 产品毛重：14.5kg/12.5kg，重量误差不超过0.5KG 产品功能：50*50mm管材，高仿皮靠垫，仰卧起坐快速消耗腹部脂肪，俯卧撑可以锻炼胸部结合臂力锻炼，锻炼胸肌与二头肌，打造力量型胸肌等。 | D45: 台 | E45: 2.00 | F45: 950.00 | G45: 1900.00
A46: 6 | B46: 拳击沙袋 | C46: 皮质不倒翁沙袋 高度：175cm； 主体高度：105cm； 主体直径：32cm； 底座高度：75cm； 底座直径：63cm ； 体积：0.25m³ 尺寸误差不超过±10mm | D46: 套 | E46: 2.00 | F46: 750.00 | G46: 1500.00
A47: 7 | B47: 音箱系统 | C47: HYUNDAI音响设备套装：10寸低音音箱2个+蓝牙、USB多功能功放+配件+安装； A350功放参数，尺寸:430x355x140mm，每项误差不超过±10mm 重量:约8.3kg，重量误差不超过0.5KG 功率:≥800*2CH(8Q) 话筒输入:3路话筒输入特色: 蓝牙播放、USB/SD卡播放。 K10A音箱：尺寸:510x290x298mm，重量:约9.6kg/只，喇叭:10寸低音+3寸高音功率:≥200W*2。 | D47: 套 | E47: 1.00 | F47: 3800.00 | G47: 3800.00
A48: 8 | B48: 墙面灯箱 | C48: LED软膜灯箱4.3m*1.2m+1.2m*2.4m，6cm铝型材边框，LED灯珠，铝箔反光底板，高清软膜UV，尺寸误差不超过±10mm | D48: ㎡ | E48: 8.04 | F48: 220.00 | G48: 1768.80
A49: 9 | B49: 方皮凳 | C49: 长40cm*宽40cm高40cm米白色蛋白皮,木质框架，尺寸误差不超过±10mm。 | D49: 张 | E49: 11.00 | F49: 200.00 | G49: 2200.00
A50: 10 | B50: 收纳柜 | C50: 12门铁皮烤漆更衣柜，高180cm宽85cm深46cm，尺寸误差不超过±10mm。 | D50: 盒 | E50: 1.00 | F50: 1240.00 | G50: 1240.00
A51: 11 | B51: 背景墙水晶字 | C51: 8+3水晶字，39cm*39cm | D51: 个 | E51: 16.00 | F51: 80.00 | G51: 1280.00
A52: 12 | B52: 吧台椅 | C52: 高脚吧台椅，38.5cm*52cm，不锈钢脚，皮垫，尺寸误差不超过±10mm。 | D52: 张 | E52: 2.00 | F52: 230.00 | G52: 460.00
A53: 13 | B53: 墙面镜子 | C53: 4.53m*2.4m定制高清舞蹈镜，尺寸误差不超过±10mm。 | D53: ㎡ | E53: 10.87 | F53: 188.00 | G53: 2043.56
A54: 1、2栋辅导员工作室 | G54: =SUM(G55:G64) -> 18420.00
A55: 1 | B55: 办公桌 | C55: 木质结构，长140cm*宽70cm*高75cm，尺寸误差不超过±10mm | D55: 张 | E55: 2.00 | F55: 720.00 | G55: =E55*F55 -> 1440.00
A56: 2 | B56: 办公椅 | C56: 不锈钢脚，皮质靠垫 | D56: 张 | E56: 2.00 | F56: 360.00 | G56: 720.00
A57: 3 | B57: 文件柜 | C57: 铁皮文件柜，长85cm*宽39cm*高180cm，尺寸误差不超过±10mm | D57: 个 | E57: 2.00 | F57: 700.00 | G57: 1400.00
A58: 4 | B58: 背景墙水晶字 | C58: 8+3水晶字，25.5cm*25.5cm*8 | D58: 组 | E58: 1.00 | F58: 450.00 | G58: 450.00
A59: 5 | B59: 电脑 | C59: 型号:麒麟9000C，核心/线程：8C/12T，主频2.35Ghz，最高内存支持16GB LPDDR5，最高存储支持1T SSD+2TB HDD，显卡：集卡，机箱尺寸93*315.5*293mm，支持系统：麒麟/统信，显示接口VGA+HDMI | D59: 套 | E59: 1.00 | F59: 5400.00 | G59: 5400.00
A60: 6 | B60: 1.5P空调 | C60: 1.5P一级能效，皓雪白；制冷量≥3510W；制热量≥5010W；制冷功率≥810W；制热功率≥1250W;外机尺寸802x350x555mm,内机尺寸825x196x293mm;空调功率1.5匹,空调类型:壁挂式,内机循环风量≥640立方米/小时,变频一级能效，室内机噪音≤41dB | D60: 台 | E60: 1.00 | F60: 2900.00 | G60: 2900.00
A61: 7 | B61: 制度牌 | C61: 5mm亚克力倒角，画面高清uv,长0.9m*高0.6m，尺寸误差不超过±10mm。 | D61: 块 | E61: 3.00 | F61: 220.00 | G61: 660.00
A62: 8 | B62: 皮沙发 | C62: 五防科技皮【橙色】45D高密度海绵款，宽80cm*高80cm*长240cm，尺寸误差不超过±10mm。 | D62: 套 | E62: 1.00 | F62: 2000.00 | G62: 2000.00
A63: 9 | B63: 窗帘 | C63: 天鹅绒麻米白色布艺窗帘克重：1200g/m+罗马杆，宽2m*高2.2m*2套 | D63: 套 | E63: 2.00 | F63: 400.00 | G63: 800.00
A64: 10 | B64: 台式打印机 | C64: 得力DM28ADN 黑白激光打印、复印、彩色扫描，28ppm，自动双面打印16ppm，1200x1200dpi打印分辨率，35页自动进稿器，3700页大容量硒鼓。 | D64: 台 | E64: 1.00 | F64: 2650.00 | G64: 2650.00
A65: 1、2栋学雷锋志愿服务站 | G65: =SUM(G66:G75) -> 20350.00
A66: 1 | B66: 办公桌 | C66: 木质结构，长140cm*宽70cm*高75cm，尺寸误差不超过±10mm | D66: 张 | E66: 2.00 | F66: 720.00 | G66: =E66*F66 -> 1440.00
A67: 2 | B67: 办公椅 | C67: 钢制脚，网布靠垫；宽460mm*侧厚460mm*高950mm； | D67: 张 | E67: 2.00 | F67: 280.00 | G67: =E67*F67 -> 560.00
A68: 3 | B68: 文件柜 | C68: 铁皮文件柜，长85cm*宽39cm*高180cm，尺寸误差不超过±10mm。 | D68: 个 | E68: 1.00 | F68: 700.00 | G68: 700.00
A69: 4 | B69: 背景墙水晶字 | C69: 8+3水晶字，25.5cm*25.5cm*8 | D69: 组 | E69: 1.00 | F69: 450.00 | G69: 450.00
A70: 5 | B70: 电脑 | C70: 型号:麒麟9000C，核心/线程：8C/12T，主频2.35Ghz，最高内存支持16GB LPDDR5，最高存储支持1T SSD+2TB HDD，显卡：集卡，机箱尺寸93*315.5*293mm，支持系统：麒麟/统信，显示接口VGA+HDMI | D70: 套 | E70: 1.00 | F70: 5400.00 | G70: 5400.00
A71: 6 | B71: 1.5P空调 | C71: 1.5P一级能效，皓雪白；制冷量≥3510W；制热量≥5010W；制冷功率≥810W；制热功率≥1250W;外机尺寸802x350x555mm,内机尺寸825x196x293mm;空调功率1.5匹,空调类型:壁挂式,内机循环风量≥640立方米/小时,变频一级能效，室内机噪音≤41dB | D71: 台 | E71: 1.00 | F71: 2900.00 | G71: 2900.00
A72: 7 | B72: 制度牌 | C72: 5mm亚克力倒角，画面高清uv,长0.9m*高0.6m，尺寸误差不超过±10mm。 | D72: 块 | E72: 2.00 | F72: 220.00 | G72: 440.00
A73: 8 | B73: 等候椅 | C73: 加厚加固三人位等候椅，钢制结构+高弹海绵皮垫，长2.9m*宽0.65m*高0.78m，尺寸误差不超过±10mm。 | D73: 套 | E73: 1.00 | F73: 1160.00 | G73: 1160.00
A74: 9 | B74: 学生健康体检医疗设备 | C74: 超声波身高体重血压测量仪一体机。功能：全自动测量，语音引导/播报，高清数码触摸屏，快速测量身高（50-210cm）、体重(3-180kg）、BMI、血压、心率等。热敏打印测量报告，直插供电。超声波身高体重血压测量仪一体机。功能：全自动测量，语音引导/播报，高清数码触摸屏，快速测量身高（50-210cm）、体重(3-180kg）、BMI、血压、心率等。热敏打印测量报告，直插供电。 | D74: 组 | E74: 1.00 | F74: 6500.00 | G74: 6500.00 | H74: 品牌：上禾、花潮、晨洁。
A75: 10 | B75: 窗帘 | C75: 天鹅绒麻米白色布艺窗帘克重：1200g/m+罗马杆，宽2m*高2.2m*2套 | D75: 套 | E75: 2.00 | F75: 400.00 | G75: 800.00
A76: 合计 | C76: =G76 -> 196620.24 | G76: =+G65+G54+G40+G27+G3+G16 -> 196620.24
